bitfinex/quotes_BTCUSD_20230107
["timestamp","ask_amount","ask_price","bid_price","bid_amount"]
[1673050552956,0.25353749,16958.0,16957.0,2.6195202]
[1673050553790,0.004,16958.0,16957.0,2.6195202]
[1673050554056,0.004,16958.0,16957.0,2.0129242]
[1673050554313,0.004,16958.0,16957.0,2.6195202]
[1673050554314,0.18048916,16958.0,16957.0,2.6195202]
[1673050554850,0.25353749,16958.0,16957.0,2.6195202]
[1673050555608,0.07704833,16958.0,16957.0,2.6195202]
[1673050555628,0.25353749,16958.0,16957.0,2.6195202]
[1673050555885,0.07704833,16958.0,16957.0,2.0129242]
[1673050556414,0.07704833,16958.0,16957.0,2.6195202]
[1673050558305,0.07704833,16958.0,16957.0,2.3195202]
[1673050558563,0.07704833,16958.0,16957.0,1.7129242]
[1673050559621,0.25353749,16958.0,16957.0,1.7129242]
[1673050560387,0.25353749,16958.0,16957.0,2.3195202]
[1673050560646,0.25353749,16958.0,16957.0,2.56762585]
[1673050560874,0.25353749,16958.0,16957.0,1.7129242]
[1673050562622,0.2528277,16958.0,16957.0,1.7129242]
[1673050562861,0.51759979,16958.0,16957.0,1.71263499]
[1673050563118,0.2528277,16958.0,16957.0,1.71263499]
[1673050563894,0.51759979,16958.0,16957.0,1.71263499]
[1673050566553,0.2528277,16958.0,16957.0,2.01263499]
[1673050567111,0.2528277,16958.0,16957.0,1.71263499]
[1673050567933,0.2528277,16958.0,16957.0,2.01263499]
[1673050568493,0.2528277,16958.0,16957.0,2.61923099]
[1673050569453,0.07633854,16958.0,16957.0,2.61923099]
[1673050579896,0.00329021,16958.0,16957.0,2.61923099]
[1673050580908,0.07553031,16958.0,16957.0,2.61923099]
[1673050581961,0.00329021,16958.0,16957.0,2.61923099]
[1673050582944,0.07553031,16958.0,16957.0,2.61923099]
[1673050583415,0.07553031,16958.0,16957.0,3.18530665]
[1673050583930,0.00329021,16958.0,16957.0,3.18530665]
[1673050584175,0.00329021,16958.0,16957.0,3.18520209]
[1673050584429,0.00329021,16958.0,16957.0,2.61923099]
[1673050584676,0.00329021,16958.0,16957.0,3.18520209]
[1673050584963,0.07553031,16958.0,16957.0,3.18520209]
[1673050585223,0.07553031,16958.0,16957.0,3.36189911]
[1673050585469,0.07553031,16958.0,16957.0,2.79614166]
[1673050585713,0.07553031,16958.0,16957.0,3.36184577]
[1673050585966,0.00258038,16958.0,16957.0,3.36184502]
[1673050586482,0.00258038,16958.0,16957.0,4.49820722]
[1673050586981,0.07325594,16958.0,16957.0,4.49820722]
[1673050588010,0.07325594,16958.0,16957.0,3.62683003]
[1673050588011,0.00258038,16958.0,16957.0,3.62683003]
[1673050588264,0.00258038,16958.0,16957.0,3.36184502]
[1673050588534,0.00258038,16958.0,16957.0,3.62683003]
[1673050589523,0.00258038,16958.0,16957.0,3.62672063]
[1673050589749,0.00258038,16958.0,16957.0,3.06112667]
[1673050590023,0.00258038,16958.0,16957.0,3.62672011]
[1673050591006,0.00258038,16958.0,16957.0,4.49808827]
[1673050593085,0.04950854,16959.0,16957.0,4.49808827]
[1673050593338,0.04950854,16959.0,16958.0,0.906596]
[1673050593664,0.04950854,16959.0,16958.0,2.08598]
[1673050593855,0.17962642,16960.0,16958.0,2.08598]
[1673050594122,0.17962642,16960.0,16959.0,0.606596]
[1673050594361,0.17962642,16960.0,16959.0,2.08591]
[1673050594888,0.17962642,16960.0,16959.0,1.479314]
[1673050595366,0.17962642,16960.0,16959.0,2.16070094]
[1673050595614,0.30962642,16960.0,16959.0,2.16570094]
[1673050596116,0.30962642,16960.0,16959.0,1.86570094]
[1673050597876,0.30962642,16960.0,16959.0,2.16570094]
[1673050601830,0.37845388,16960.0,16959.0,2.16570094]
[1673050605668,0.37845388,16960.0,16959.0,1.86570094]
[1673050606137,0.64322597,16960.0,16959.0,1.86570094]
[1673050606391,0.64322597,16960.0,16959.0,2.16570094]
[1673050607352,0.64322597,16960.0,16959.0,1.86570094]
[1673050607854,0.64322597,16960.0,16959.0,2.16570094]
[1673050611870,0.64322597,16960.0,16959.0,1.86570094]
[1673050612093,0.81976931,16960.0,16959.0,1.86570094]
[1673050614859,1.0574472,16960.0,16959.0,0.594657]
[1673050615122,2.00957254,16960.0,16959.0,0.594657]
[1673050615374,2.00957254,16960.0,16959.0,0.59459524]
[1673050615375,1.56819167,16960.0,16959.0,0.59459524]
[1673050615628,1.56819167,16960.0,16959.0,0.005]
[1673050616614,2.31379167,16960.0,16959.0,0.005]
[1673050617389,2.84243851,16960.0,16959.0,0.005]
[1673050617638,2.31379167,16960.0,16959.0,0.005]
[1673050619155,2.98234608,16960.0,16959.0,0.005]
[1673050619414,3.54148839,16960.0,16959.0,0.005]
[1673050620431,3.3526784,16960.0,16959.0,0.005]
[1673050620692,3.55539142,16960.0,16959.0,0.005]
[1673050625332,2.98750058,16960.0,16959.0,0.005]
[1673050625582,3.02674458,16960.0,16959.0,0.005]
[1673050629222,2.85384458,16960.0,16959.0,0.005]
[1673050635693,2.85384458,16960.0,16959.0,0.00488373]
[1673050644084,3.38249142,16960.0,16959.0,0.00488373]
[1673050644639,2.85384458,16960.0,16959.0,0.00488373]
[1673050644880,3.38249142,16960.0,16959.0,0.00488373]
[1673050645126,2.13698323,16960.0,16959.0,0.00496673]
[1673050645373,2.13698323,16960.0,16959.0,0.7772724]
[1673050645374,1.19786102,16960.0,16959.0,0.7772724]
[1673050645632,1.02161659,16960.0,16959.0,0.7772724]
[1673050646611,1.02161659,16960.0,16959.0,0.5961324]
[1673050648066,1.19786102,16960.0,16959.0,0.5961324]
[1673050650302,1.19786102,16960.0,16959.0,1.1857894]
[1673050654041,1.26021345,16960.0,16959.0,1.7754464]
[1673050654295,0.81956196,16960.0,16959.0,1.7754464]
[1673050657516,0.64307199,16960.0,16959.0,1.7754464]
[1673050657993,0.64307199,16960.0,16959.0,1.77533418]
[1673050658718,0.46665962,16960.0,16959.0,1.77533418]
[1673050658975,0.81956196,16960.0,16959.0,1.77533418]
[1673050659946,0.99551855,16960.0,16959.0,1.77533418]
[1673050663697,1.26009456,16960.0,16959.0,1.77533418]
[1673050664061,0.99551855,16960.0,16959.0,1.77533418]
[1673050665837,1.2600947,16960.0,16959.0,1.77533418]
[1673050666089,0.81944311,16960.0,16959.0,1.77533418]
[1673050667268,0.81944311,16960.0,16959.0,1.72523448]
[1673050668761,0.99551855,16960.0,16959.0,1.72523448]
[1673050669306,0.99551855,16960.0,16959.0,1.18416851]
[1673050669561,0.83023142,16960.0,16959.0,1.18416851]
[1673050672138,1.18298181,16960.0,16959.0,1.18416851]
[1673050672665,0.9953666,16960.0,16959.0,1.18416851]
[1673050673171,0.81927254,16960.0,16959.0,1.18416851]
[1673050673951,0.81917307,16960.0,16959.0,1.18416851]
[1673050675899,1.25982456,16960.0,16959.0,1.18416851]
[1673050676918,0.81917307,16960.0,16959.0,1.18416851]
[1673050677645,0.99526713,16960.0,16959.0,1.18416851]
[1673050677893,0.81925095,16960.0,16959.0,1.18416851]
[1673050681443,0.99526713,16960.0,16959.0,1.18416851]
[1673050682423,1.26002395,16960.0,16959.0,1.18416851]
[1673050682682,0.99526713,16960.0,16959.0,1.18416851]
[1673050686890,0.99455742,16960.0,16959.0,1.18416851]
[1673050688916,0.99455742,16960.0,16959.0,1.18444928]
[1673050691411,0.99455742,16960.0,16959.0,1.18416851]
[1673050696763,0.99455742,16960.0,16959.0,1.78976308]
[1673050699748,0.81876764,16960.0,16959.0,1.78976308]
[1673050700720,1.25941913,16960.0,16959.0,1.78976308]
[1673050701208,0.99455742,16960.0,16959.0,1.78976308]
[1673050701787,1.25941026,16960.0,16959.0,1.78976308]
[1673050702303,0.99455742,16960.0,16959.0,1.78976308]
[1673050702548,1.25940986,16960.0,16959.0,1.78976308]
[1673050703047,0.99455742,16960.0,16959.0,1.78976308]
[1673050706408,1.40538087,16960.0,16959.0,1.18416851]
[1673050706654,1.51098338,16960.0,16959.0,0.59451151]
[1673050707401,0.96472938,16960.0,16959.0,0.59451151]
[1673050708407,0.96472938,16960.0,16959.0,0.59440048]
[1673050709895,0.39683854,16960.0,16959.0,0.59440048]
[1673050710376,0.39612883,16960.0,16959.0,0.59440048]
[1673050710871,0.94238283,16960.0,16959.0,0.59440048]
[1673050711387,1.51027367,16960.0,16959.0,0.59440048]
[1673050711860,0.94238283,16960.0,16959.0,0.59440048]
[1673050712408,1.51027367,16960.0,16959.0,0.59440048]
[1673050716062,1.51027367,16960.0,16959.0,0.00474348]
[1673050717357,0.94238283,16960.0,16959.0,0.00474348]
[1673050718680,1.51027367,16960.0,16959.0,0.00474348]
[1673050718913,1.44144621,16960.0,16959.0,0.00474348]
[1673050719938,1.50523165,16960.0,16959.0,0.00474348]
[1673050721069,1.44144621,16960.0,16959.0,0.00474348]
[1673050722332,0.87355537,16960.0,16959.0,0.00474348]
[1673050722857,1.44144621,16960.0,16959.0,0.00474348]
[1673050723117,1.50502774,16960.0,16959.0,0.00474348]
[1673050727039,1.94624571,16960.0,16959.0,0.00474348]
[1673050727311,0.9371369,16960.0,16959.0,0.00474348]
[1673050727609,0.83210573,16960.0,16959.0,0.00474348]
[1673050728128,1.37835973,16960.0,16959.0,0.00474348]
[1673050728629,0.83210573,16960.0,16959.0,0.00474348]
[1673050728899,1.37835973,16960.0,16959.0,0.00474348]
[1673050729403,0.83210573,16960.0,16959.0,0.00474348]
[1673050729942,1.37835973,16960.0,16959.0,0.00474348]
[1673050730229,0.83210573,16960.0,16959.0,0.00474348]
[1673050730713,1.37835973,16960.0,16959.0,0.00474348]
[1673050732246,0.83210573,16960.0,16959.0,0.00474348]
[1673050732761,1.37835973,16960.0,16959.0,0.00474348]
[1673050733273,0.83210573,16960.0,16959.0,0.00474348]
[1673050733786,1.37835973,16960.0,16959.0,0.00474348]
[1673050734286,0.83210573,16960.0,16959.0,0.00474348]
[1673050734544,1.37835973,16960.0,16959.0,0.00474348]
[1673050735054,1.37835973,16960.0,16959.0,0.00463747]
[1673050735307,0.83210573,16960.0,16959.0,0.00463747]
[1673050736560,1.37835973,16960.0,16959.0,0.00463747]
[1673050736887,1.37847841,16960.0,16959.0,0.00463747]
[1673050737133,0.83222441,16960.0,16959.0,0.00463747]
[1673050739029,0.95877374,16960.0,16959.0,0.00463747]
[1673050739324,1.50502774,16960.0,16959.0,0.00463747]
[1673050740815,2.03367458,16960.0,16959.0,0.00463747]
[1673050744357,1.99370469,16960.0,16959.0,0.00463747]
[1673050745142,1.99370469,16960.0,16959.0,0.17384277]
[1673050746425,1.42581385,16960.0,16959.0,0.17384277]
[1673050747181,0.87955985,16960.0,16959.0,0.17384277]
[1673050747433,0.89716701,16960.0,16959.0,0.17384277]
[1673050747936,0.35091301,16960.0,16959.0,0.17384277]
[1673050749137,0.89716701,16960.0,16959.0,0.17384277]
[1673050749647,0.35091301,16960.0,16959.0,0.17384277]
[1673050750131,0.89716701,16960.0,16959.0,0.17384277]
[1673050750382,0.35091301,16960.0,16959.0,0.17384277]
[1673050751319,0.89716701,16960.0,16959.0,0.17384277]
[1673050751846,1.46260805,16960.0,16959.0,0.00463747]
[1673050752104,1.99125489,16960.0,16959.0,0.00463747]
[1673050754007,1.92767336,16960.0,16959.0,0.00463747]
[1673050760046,1.99095598,16960.0,16959.0,0.00463747]
[1673050761033,1.92767336,16960.0,16959.0,0.00463747]
[1673050762011,1.99095598,16960.0,16959.0,0.00463747]
[1673050762995,1.92767336,16960.0,16959.0,0.00463747]
[1673050763984,1.99095598,16960.0,16959.0,0.00463747]
[1673050765026,1.92767336,16960.0,16959.0,0.00463747]
[1673050765511,2.09987336,16960.0,16959.0,0.00463747]
[1673050766025,2.16315598,16960.0,16959.0,0.00463747]
[1673050766874,2.56315598,16960.0,16959.0,0.00453804]
[1673050767126,2.49987336,16960.0,16959.0,0.00453804]
[1673050767877,2.03432349,16960.0,16959.0,0.00453804]
[1673050768855,2.49987336,16960.0,16959.0,0.00453804]
[1673050769843,2.56297033,16960.0,16959.0,0.00453804]
[1673050771130,2.49987336,16960.0,16959.0,0.00453804]
[1673050772131,2.56297033,16960.0,16959.0,0.00453804]
[1673050772884,2.49987336,16960.0,16959.0,0.00453804]
[1673050774102,2.56001208,16960.0,16959.0,0.00453804]
[1673050774851,2.49987336,16960.0,16959.0,0.00453804]
[1673050776096,2.559896,16960.0,16959.0,0.00453804]
[1673050780917,1.59445496,16960.0,16959.0,0.00453804]
[1673050781147,1.04820096,16960.0,16959.0,0.00453804]
[1673050781415,1.59445496,16960.0,16959.0,0.00453804]
[1673050781684,2.159896,16960.0,16959.0,0.00453804]
[1673050781946,2.09987336,16960.0,16959.0,0.00453804]
[1673050782997,2.159896,16960.0,16959.0,0.00453804]
[1673050787073,2.559896,16960.0,16959.0,0.00442059]
[1673050795326,2.387696,16960.0,16959.0,0.00442059]
[1673050799194,2.3876118,16960.0,16959.0,0.00442059]
[1673050801780,2.3789918,16960.0,16959.0,0.00442059]
[1673050802024,1.9789918,16960.0,16959.0,0.00442059]
[1673050802280,1.4327378,16960.0,16959.0,0.00442059]
[1673050802535,1.4327378,16960.0,16959.0,0.055671]
[1673050804902,1.43262988,16960.0,16959.0,0.00442059]
[1673050807854,1.97888388,16960.0,16959.0,0.00442059]
[1673050813235,1.43262988,16960.0,16959.0,0.00442059]
[1673050815457,1.43262988,16960.0,16959.0,0.00136659]
[1673050818810,1.97888388,16960.0,16959.0,0.00136659]
[1673050828430,1.43262988,16960.0,16959.0,0.00136659]
[1673050828930,1.97888388,16960.0,16959.0,0.00136659]
[1673050831629,2.37888388,16960.0,16959.0,0.00136659]
[1673050831885,1.85023704,16960.0,16959.0,0.00136659]
[1673050832452,2.38034269,16960.0,16959.0,0.00136659]
[1673050833763,2.37963298,16960.0,16959.0,0.00136659]
[1673050838089,1.83337898,16960.0,16959.0,0.00136659]
[1673050838342,2.37963298,16960.0,16959.0,0.00136659]
[1673050843185,2.37963298,16960.0,16959.0,0.06342747]
[1673050843186,1.83337898,16960.0,16959.0,0.06342747]
[1673050843717,1.26793794,16960.0,16959.0,0.06342747]
[1673050844198,1.26793794,16960.0,16959.0,0.00136659]
[1673050846264,1.83337898,16960.0,16959.0,0.00136659]
[1673050846477,2.37963298,16960.0,16959.0,0.00136659]
[1673050847732,1.83337898,16960.0,16959.0,0.00136659]
[1673050848011,1.26793794,16960.0,16959.0,0.00136659]
[1673050848790,1.83337898,16960.0,16959.0,0.00136659]
[1673050849774,2.37963298,16960.0,16959.0,0.00136659]
[1673050857064,2.37892332,16960.0,16959.0,0.00136659]
[1673050857557,1.83266932,16960.0,16959.0,0.00136659]
[1673050858302,1.83266932,16960.0,16959.0,0.12239647]
[1673050858552,2.37892332,16960.0,16959.0,0.12239647]
[1673050858802,1.83266932,16960.0,16959.0,0.12239647]
[1673050861246,1.83266932,16960.0,16959.0,0.00136659]
[1673050861528,0.4,16959.0,16958.0,1.20500682]
[1673050862770,0.434,16959.0,16958.0,1.20800682]
[1673050863011,0.48903909,16959.0,16958.0,1.20800682]
[1673050863781,0.08903909,16959.0,16958.0,1.20800682]
[1673050868782,0.53067682,16959.0,16958.0,1.20800682]
[1673050869030,0.08903909,16959.0,16958.0,1.20800682]
[1673050877769,0.53067477,16959.0,16958.0,1.20800682]
[1673050878305,0.08903909,16959.0,16958.0,1.20800682]
[1673050882364,0.53077406,16959.0,16958.0,1.20800682]
[1673050885483,0.53077406,16959.0,16958.0,1.20794195]
[1673050885737,0.93077406,16959.0,16958.0,1.20794195]
[1673050887831,0.53077406,16959.0,16958.0,1.20794195]
[1673050891647,0.08903909,16959.0,16958.0,1.20794195]
[1673050891929,0.53077094,16959.0,16958.0,1.20794195]
[1673050892436,0.08903909,16959.0,16958.0,1.20794195]
[1673050892683,0.53077124,16959.0,16958.0,1.20794195]
[1673050900707,0.53077124,16959.0,16958.0,1.81453795]
[1673050900973,0.53077124,16959.0,16958.0,1.20794195]
[1673050908223,0.08903909,16959.0,16958.0,1.20794195]
[1673050908991,0.53085049,16959.0,16958.0,1.20794195]
[1673050909248,0.08814709,16959.0,16958.0,1.38770645]
[1673050909493,0.52996218,16959.0,16958.0,1.38770645]
[1673050910252,0.63440109,16959.0,16958.0,1.38770645]
[1673050910725,0.63440109,16959.0,16958.0,1.20794195]
[1673050911650,0.08814709,16959.0,16958.0,1.20794195]
[1673050914796,0.63440109,16959.0,16958.0,1.20794195]
[1673050916564,0.08814709,16959.0,16958.0,1.20794195]
[1673050916797,0.08814709,16959.0,16958.0,0.59269]
[1673050917265,0.63440109,16959.0,16958.0,0.59269]
[1673050917522,0.08814709,16959.0,16958.0,0.59269]
[1673050918233,0.63440109,16959.0,16958.0,0.59269]
[1673050920258,0.08814709,16959.0,16958.0,0.59269]
[1673050920743,0.08814709,16959.0,16958.0,0.77931419]
[1673050920993,0.53014366,16959.0,16958.0,0.77931419]
[1673050921524,0.53014366,16959.0,16958.0,0.59269]
[1673050923639,1.07639766,16959.0,16958.0,0.59269]
[1673050924183,0.53014366,16959.0,16958.0,0.59269]
[1673050924696,0.08814709,16959.0,16958.0,0.59269]
[1673050925254,0.5301391,16959.0,16958.0,0.59269]
[1673050925732,0.53014104,16959.0,16958.0,0.59269]
[1673050931350,0.63440109,16959.0,16958.0,0.59269]
[1673050931926,0.08814709,16959.0,16958.0,0.59269]
[1673050932749,0.32586441,16959.0,16958.0,0.59269]
[1673050933002,0.87211841,16959.0,16958.0,0.59269]
[1673050933776,0.87211841,16959.0,16958.0,0.59259915]
[1673050934013,1.27211841,16959.0,16958.0,0.59259915]
[1673050934262,0.72586441,16959.0,16958.0,0.59259915]
[1673050934711,1.16780853,16959.0,16958.0,0.59259915]
[1673050934957,0.72586441,16959.0,16958.0,0.59259915]
[1673050935204,0.32586441,16959.0,16958.0,0.59259915]
[1673050941362,1.06013857,16960.0,16958.0,0.59259915]
[1673050941860,0.946254,16959.0,16958.0,0.59259915]
[1673050942402,0.4,16959.0,16958.0,0.77921426]
[1673050942648,1.07536861,16960.0,16958.0,0.77621426]
[1673050942908,1.13736861,16960.0,16958.0,0.78221426]
[1673050943906,1.07536861,16960.0,16958.0,0.77621426]
[1673050944496,1.13736861,16960.0,16958.0,0.78221426]
[1673050945439,0.546254,16959.0,16958.0,0.78221426]
[1673050945711,1.13736861,16960.0,16958.0,0.78221426]
[1673050946405,0.946254,16959.0,16958.0,0.78221426]
[1673050946653,0.946254,16959.0,16958.0,0.59559915]
[1673050946901,0.946254,16959.0,16958.0,0.58959915]
[1673050947155,0.014,16959.0,16958.0,0.58959915]
[1673050948692,0.45601096,16959.0,16958.0,0.58959915]
[1673050948947,0.014,16959.0,16958.0,0.58959915]
[1673050949522,0.4560176,16959.0,16958.0,0.58959915]
[1673050950655,1.0022716,16959.0,16958.0,0.58959915]
[1673050951853,0.4560176,16959.0,16958.0,0.58959915]
[1673050952691,0.4560176,16959.0,16958.0,0.58972832]
[1673050953203,0.4560176,16959.0,16958.0,0.77592717]
[1673050953746,0.4560176,16959.0,16958.0,0.77605634]
[1673050954739,0.4560176,16959.0,16958.0,0.77592717]
[1673050955234,0.4560176,16959.0,16958.0,0.58959915]
[1673050956940,0.4560176,16959.0,16958.0,0.58972832]
[1673050957436,0.4560176,16959.0,16958.0,0.58959915]
[1673050958550,0.4560176,16959.0,16958.0,0.58972832]
[1673050958822,0.4560176,16959.0,16958.0,0.58959915]
[1673050959082,0.45530794,16959.0,16958.0,0.58959915]
[1673050959590,0.45530794,16959.0,16958.0,0.58972832]
[1673050960146,0.45530794,16959.0,16958.0,0.77605634]
[1673050961058,0.45530794,16959.0,16958.0,0.77592717]
[1673050962328,0.45530794,16959.0,16958.0,0.77605634]
[1673050962580,0.45530794,16959.0,16958.0,0.77592717]
[1673050963715,0.45530794,16959.0,16958.0,0.77605634]
[1673050964919,0.45530794,16959.0,16958.0,0.77592717]
[1673050965153,0.45530794,16959.0,16958.0,0.77605634]
[1673050965414,0.45530794,16959.0,16958.0,0.77592717]
[1673050968196,0.45530794,16959.0,16958.0,0.77605634]
[1673050968445,0.45530794,16959.0,16958.0,0.77592717]
[1673050969199,0.45530794,16959.0,16958.0,0.77605634]
[1673050970933,0.45530794,16959.0,16958.0,0.77592717]
[1673050971968,0.45530794,16959.0,16958.0,0.77605634]
[1673050972225,0.45530794,16959.0,16958.0,0.77592717]
[1673050972489,0.45530794,16959.0,16958.0,1.38252317]
[1673050972984,0.45530794,16959.0,16958.0,0.77592717]
[1673050973468,0.45530794,16959.0,16958.0,0.58959915]
[1673050973729,0.45530794,16959.0,16958.0,1.19619515]
[1673050975575,0.45530794,16959.0,16958.0,2.35695921]
[1673050975576,0.80902755,16959.0,16958.0,2.35695921]
[1673050976066,0.80902755,16959.0,16958.0,2.65695921]
[1673050976847,0.63226742,16959.0,16958.0,2.65695921]
[1673050977357,0.63226742,16959.0,16958.0,2.35683004]
[1673050977628,0.80902755,16959.0,16958.0,2.35683004]
[1673050977901,1.07428126,16959.0,16958.0,2.35683004]
[1673050978123,0.63226366,16959.0,16958.0,2.65683004]
[1673050978386,0.63226366,16959.0,16958.0,2.35683004]
[1673050978641,0.63226366,16959.0,16958.0,2.65695921]
[1673050980840,0.63226366,16959.0,16958.0,2.65688639]
[1673050981859,0.80908203,16959.0,16958.0,2.65688639]
[1673050982359,0.63226366,16959.0,16958.0,2.65688639]
[1673050982629,0.45465416,16959.0,16958.0,3.00388639]
[1673050982894,0.43246317,16960.0,16959.0,0.52943908]
[1673050983144,0.43246317,16960.0,16959.0,2.78774908]
[1673050984164,0.49147779,16960.0,16959.0,2.85174908]
[1673050984674,0.23583444,16960.0,16959.0,2.85174908]
[1673050985190,0.17981982,16960.0,16959.0,2.85174908]
[1673050986202,0.23583444,16960.0,16959.0,2.85174908]
[1673050987703,0.23583444,16960.0,16959.0,2.55174908]
[1673050987960,0.23583444,16960.0,16959.0,2.85174908]
[1673050989207,0.17981982,16960.0,16959.0,2.85174908]
[1673050989954,0.17981982,16960.0,16959.0,2.55174908]
[1673050990195,0.23583444,16960.0,16959.0,2.55174908]
[1673050990947,0.41273423,16960.0,16959.0,2.55174908]
[1673050991207,0.41273423,16960.0,16959.0,1.94515308]
[1673050991979,0.67772081,16960.0,16959.0,1.94515308]
[1673050992996,0.50066727,16960.0,16959.0,1.94515308]
[1673050993371,0.50066727,16960.0,16959.0,1.94515308]
[1673050993579,0.50066727,16960.0,16959.0,2.24515308]
[1673050993789,0.50066727,16960.0,16959.0,2.55174908]
[1673050994020,0.50066727,16960.0,16959.0,2.85174908]
[1673050994453,0.23568069,16960.0,16959.0,2.85174908]
[1673050996259,0.50066727,16960.0,16959.0,2.85174908]
[1673050996517,0.23568069,16960.0,16959.0,2.85174908]
[1673050997547,0.50066727,16960.0,16959.0,2.85174908]
[1673050997830,0.50066727,16960.0,16959.0,2.55174908]
[1673050998827,0.23568069,16960.0,16959.0,2.55174908]
[1673050999080,0.50066727,16960.0,16959.0,1.94515308]
[1673051000355,0.85438688,16960.0,16959.0,1.94515308]
[1673051000870,0.67772081,16960.0,16959.0,1.94515308]
[1673051005625,0.67772081,16960.0,16959.0,1.77275308]
[1673051006470,0.67772081,16960.0,16959.0,1.77269174]
[1673051006716,1.11973841,16960.0,16959.0,1.77269174]
[1673051006992,1.11982652,16960.0,16959.0,1.77269174]
[1673051008022,0.67780892,16960.0,16959.0,1.77269174]
[1673051009529,1.11982652,16960.0,16959.0,1.77269174]
[1673051010287,0.67780892,16960.0,16959.0,1.77269174]
[1673051010539,1.11982652,16960.0,16959.0,1.77269174]
[1673051010787,0.85475183,16960.0,16959.0,1.77269174]
[1673051011552,1.11993434,16960.0,16959.0,1.77269174]
[1673051012052,0.67791674,16960.0,16959.0,1.77269174]
[1673051012297,0.67791674,16960.0,16959.0,1.7728209]
[1673051014397,1.11993434,16960.0,16959.0,1.7728209]
[1673051014849,0.85475183,16960.0,16959.0,1.7728209]
[1673051016337,0.85475183,16960.0,16959.0,1.77269174]
[1673051018883,0.50103222,16960.0,16959.0,1.77269174]
[1673051021124,0.50103222,16960.0,16959.0,1.7728209]
[1673051021371,0.85472571,16960.0,16959.0,1.77269174]
[1673051021630,0.50103222,16960.0,16959.0,1.77269174]
[1673051022136,0.85472539,16960.0,16959.0,1.77269174]
[1673051024784,0.85472539,16960.0,16959.0,0.59337774]
[1673051025055,0.85472539,16960.0,16959.0,1.77269174]
[1673051025295,1.12003098,16960.0,16959.0,1.77269174]
[1673051025588,0.85472539,16960.0,16959.0,1.77269174]
[1673051025850,0.85472539,16960.0,16959.0,1.94996091]
[1673051026067,0.85472539,16960.0,16959.0,2.85655691]
[1673051026068,0.67801446,16960.0,16959.0,2.85655691]
[1673051027154,0.67801446,16960.0,16959.0,2.67928774]
[1673051027430,0.67801446,16960.0,16959.0,1.77269174]
[1673051028651,0.85472539,16960.0,16959.0,1.77269174]
[1673051030517,1.12005509,16960.0,16959.0,2.07296493]
[1673051030767,0.85472539,16960.0,16959.0,1.77296493]
[1673051031039,1.12005682,16960.0,16959.0,1.77296493]
[1673051031305,1.12005552,16960.0,16959.0,2.07296493]
[1673051031564,0.85472539,16960.0,16959.0,1.77296493]
[1673051031821,0.85472539,16960.0,16959.0,2.07296493]
[1673051032101,0.85472539,16960.0,16959.0,1.77296493]
[1673051034750,0.67804939,16960.0,16959.0,2.67956093]
[1673051036265,0.67804939,16960.0,16959.0,1.77296493]
[1673051036483,0.67804939,16960.0,16959.0,1.77269174]
[1673051037040,0.85472539,16960.0,16959.0,1.77269174]
[1673051045281,0.67804751,16960.0,16959.0,2.07269174]
[1673051046067,1.12006511,16960.0,16959.0,2.02079739]
[1673051046395,1.12006511,16960.0,16959.0,1.77269174]
[1673051046576,0.67804751,16960.0,16959.0,2.07269174]
[1673051046834,1.12006511,16960.0,16959.0,2.07269174]
[1673051047101,1.12006511,16960.0,16959.0,1.77269174]
[1673051047352,1.12006511,16960.0,16959.0,1.77296493]
[1673051048420,0.85472539,16960.0,16959.0,1.77296493]
[1673051048675,1.1200715,16960.0,16959.0,1.77296493]
[1673051048919,0.85472539,16960.0,16959.0,1.77296493]
[1673051049165,1.12006676,16960.0,16959.0,1.77296493]
[1673051049417,0.85472539,16960.0,16959.0,1.77296493]
[1673051049665,1.12006572,16960.0,16959.0,1.77296493]
[1673051050159,0.85472539,16960.0,16959.0,1.77296493]
[1673051053124,0.85472539,16960.0,16959.0,1.77269174]
[1673051054396,0.85472539,16960.0,16959.0,1.77259978]
[1673051059362,0.85472539,16960.0,16959.0,2.07259978]
[1673051063196,0.85472539,16960.0,16959.0,2.67919578]
[1673051063437,0.85472539,16960.0,16959.0,2.07259978]
[1673051064191,0.85472539,16960.0,16959.0,2.67919578]
[1673051064447,1.12011473,16960.0,16959.0,2.67919578]
[1673051064695,1.12011473,16960.0,16959.0,2.07259978]
[1673051064917,0.67809713,16960.0,16959.0,2.07259978]
[1673051065431,0.85472539,16960.0,16959.0,1.77259978]
[1673051071168,0.50103222,16960.0,16959.0,1.243314]
[1673051071411,1.04728622,16960.0,16959.0,1.243314]
[1673051072010,0.50103222,16960.0,16959.0,1.243314]
[1673051077623,0.50103222,16960.0,16959.0,1.24323051]
[1673051082499,0.85471989,16960.0,16959.0,1.13554651]
[1673051084035,0.85401018,16960.0,16959.0,1.43554651]
[1673051085324,0.85401018,16960.0,16959.0,1.13554651]
[1673051088007,0.85401018,16960.0,16959.0,1.43554651]
[1673051088228,0.85401018,16960.0,16959.0,1.13554651]
[1673051088713,0.85401018,16960.0,16959.0,1.43554651]
[1673051088973,0.67727246,16960.0,16959.0,1.43554651]
[1673051095676,0.67727246,16960.0,16959.0,1.13554651]
[1673051095923,1.11929006,16960.0,16959.0,1.43554651]
[1673051096434,1.11929364,16960.0,16959.0,1.13554651]
[1673051096699,0.85401018,16960.0,16959.0,1.13554651]
[1673051099035,1.11927558,16960.0,16959.0,1.13554651]
[1673051099833,0.67725798,16960.0,16959.0,1.13554651]
[1673051101427,0.67725798,16960.0,16959.0,1.43554651]
[1673051105589,0.67725798,16960.0,16959.0,1.13554651]
[1673051107483,0.67654827,16960.0,16959.0,1.43543751]
[1673051107756,0.67654827,16960.0,16959.0,1.13543751]
[1673051108023,0.67654827,16960.0,16959.0,1.43543751]
[1673051110436,0.67654827,16960.0,16959.0,2.04203351]
[1673051125444,0.49976451,16960.0,16959.0,2.04203351]
[1673051126030,0.85345218,16960.0,16959.0,2.04203351]
[1673051126297,0.67654827,16960.0,16959.0,2.04203351]
[1673051126559,0.85343893,16960.0,16959.0,1.43543751]
[1673051126804,0.67654827,16960.0,16959.0,1.43543751]
[1673051129534,0.67654827,16960.0,16959.0,1.43535416]
[1673051130758,1.11856587,16960.0,16959.0,1.13535416]
[1673051131345,1.11865725,16960.0,16959.0,1.13535416]
[1673051131588,1.11865725,16960.0,16959.0,1.43535416]
[1673051131835,0.67663965,16960.0,16959.0,2.04195016]
[1673051132091,1.11865725,16960.0,16959.0,1.13535416]
[1673051132354,0.67663965,16960.0,16959.0,1.13535416]
[1673051133329,0.85330047,16960.0,16959.0,1.13535416]
[1673051133574,0.85330047,16960.0,16959.0,1.43535416]
[1673051134079,0.85330047,16960.0,16959.0,1.13535416]
[1673051137425,0.85330047,16960.0,16959.0,1.43535416]
[1673051140028,1.11867133,16960.0,16959.0,1.43535416]
[1673051140752,0.85330047,16960.0,16959.0,1.43535416]
[1673051144332,0.85330047,16960.0,16959.0,1.13535416]
[1673051144572,0.85330047,16960.0,16959.0,1.43535416]
[1673051144805,0.85330047,16960.0,16959.0,2.04195016]
[1673051145067,0.85330047,16960.0,16959.0,1.43535416]
[1673051145308,1.11867634,16960.0,16959.0,1.43535416]
[1673051145623,0.67665874,16960.0,16959.0,1.43535416]